[Event "11th Arad Open 2018"]
[Site "Arad"]
[Date "2018.08.08"]
[Round "5"]
[White "Weinzettl, Ernst"]
[Black "Abramovic, Bosko"]
[Result "1-0"]
[ECO "B28"]
[WhiteElo "2215"]
[BlackElo "2400"]
[Annotator "NA"]
[PlyCount "62"]
[EventDate "2018.08.05"]
[EventType "swiss"]
[EventCountry "ROU"]
[SourceTitle "playchess.com"]
[Source "ChessBase"]
[SourceQuality "1"]
[TimeControl "40/5400+30:1800+30"]

1. e4 {[%emt 0:00:00]} c5 {[%emt 0:00:00]} 2. Nf3 {[%emt 0:00:00]} a6 {[%emt 0:00:07]} 3. Nc3 {[%emt 0:00:32]} Nc6 {[%emt 0:01:52]} 4. d4 {[%emt 0:00:26]} cxd4 {[%emt 0:00:08]} 5. Nxd4 {[%emt 0:00:08]} e5 {[%emt 0:00:06]} 6. Nf5 {[%emt 0:03:47]} d6 {[%emt 0:00:34]} 7. Nd5 {[%emt 0:01:54]} Be6 {[%emt 0:04:30]} 8. Bc4 {[%emt 0:23:16]} g6 {[%emt 0:05:04]} 9. Ng3 {[%emt 0:06:03]} Bg7 {[%emt 0:10:17]} 10. Be3 {[%emt 0:12:53]} Rc8 {[%emt 0:06:58]} 11. Bb3 {[%emt 0:00:16]} Nge7 {[%emt 0:08:44]} 12. Nb6 {[%emt 0:01:13]} Rc7 {[%emt 0:00:49]} 13. Bxe6 {[%emt 0:03:40]} fxe6 {[%emt 0:00:47]} 14. c3 {[%emt 0:00:22]} Nc8 {[%emt 0:06:02]} 15. h4 {[%emt 0:13:26]} h6 {[%emt 0:02:12]} 16. Qg4 {[%emt 0:01:12]} Qf6 {[%emt 0:00:50]} 17. Rd1 {[%emt 0:01:23]} h5 {[%emt 0:05:23]} 18. Qe2 {[%emt 0:00:07]} Nxb6 {[%emt 0:00:32]} 19. Bxb6 {[%emt 0:00:06]} Rd7 {[%emt 0:00:04]} 20. Be3 {[%emt 0:00:27]} Bh6 {[%emt 0:00:48]} 21. Bxh6 {[%emt 0:08:04]} Rxh6 {[%emt 0:00:13]} 22. Nf1 {[%emt 0:04:54]} d5 {[%emt 0:04:06]} 23. Nd2 {[%emt 0:01:44]} Rhh7 {[%emt 0:00:49]} 24. Nf3 {[%emt 0:01:05]} Rhe7 {[%emt 0:01:56]} 25. O-O {[%emt 0:00:39]} d4 {[%emt 0:04:33]} 26. Rd2 {[%emt 0:02:19]} Rd8 {[%emt 0:02:25]} 27. Rfd1 {[%emt 0:00:16]} Red7 {[%emt 0:00:06]} 28. Qc4 {[%emt 0:01:08]} Rd6 {[%emt 0:02:22]} 29. Ng5 {[%emt 0:01:44]} R8d7 {[%emt 0:00:41]} 30. Rd3 {[%emt 0:00:19]} Qe7 {[%emt 0:00:55]} 31. Kh2 {[%emt 0:01:31]} dxc3 {[%emt 0:04:31]} 1-0

[Event "11th Arad Open 2018"]
[Site "Arad"]
[Date "2018.08.08"]
[Round "5"]
[White "Zubcu, Vlad-George"]
[Black "Bogdan, Dan"]
[Result "1/2-1/2"]
[ECO "A45"]
[WhiteElo "2202"]
[BlackElo "2382"]
[Annotator "NA"]
[PlyCount "28"]
[EventDate "2018.08.05"]
[EventType "swiss"]
[EventCountry "ROU"]
[SourceTitle "playchess.com"]
[Source "ChessBase"]
[SourceQuality "1"]
[TimeControl "40/5400+30:1800+30"]

1. d4 {[%emt 0:00:00]} Nf6 {[%emt 0:00:45]} 2. Bg5 {[%emt 0:00:00]} Ne4 {[%emt 0:00:33]} 3. Bf4 {[%emt 0:00:00]} d5 {[%emt 0:03:04]} 4. f3 {[%emt 0:00:00]} Nf6 {[%emt 0:01:48]} 5. e4 {[%emt 0:01:01]} dxe4 {[%emt 0:02:37]} 6. Nc3 {[%emt 0:00:09]} e3 {[%emt 0:06:38]} 7. Bxe3 {[%emt 0:05:05]} c6 {[%emt 0:03:02]} 8. Bd3 {[%emt 0:03:46]} Nbd7 {[%emt 0:01:54]} 9. Qe2 {[%emt 0:04:03]} Nb6 {[%emt 0:02:20]} 10. Ne4 {[%emt 0:01:35]} Nbd5 {[%emt 0:04:15]} 11. Bd2 {[%emt 0:01:25]} e6 {[%emt 0:00:26]} 12. c3 {[%emt 0:01:06]} Be7 {[%emt 0:00:36]} 13. Nh3 {[%emt 0:00:34]} Qc7 {[%emt 0:03:42]} 14. O-O {[%emt 0:05:12]} Qd8 {[%emt 0:15:45]} 1/2-1/2

[Event "11th Arad Open 2018"]
[Site "Arad"]
[Date "2018.08.08"]
[Round "5"]
[White "Scripcaru, George-Daniel"]
[Black "Baratosi, Daniel"]
[Result "1/2-1/2"]
[ECO "D08"]
[WhiteElo "2177"]
[BlackElo "2371"]
[Annotator "NA"]
[PlyCount "139"]
[EventDate "2018.08.05"]
[EventType "swiss"]
[EventCountry "ROU"]
[SourceTitle "playchess.com"]
[Source "ChessBase"]
[SourceQuality "1"]
[TimeControl "40/5400+30:1800+30"]

1. d4 d5 2. c4 e5 3. dxe5 d4 4. Nf3 Nc6 5. a3 Bg4 6. Nbd2 a5 7. h3 Bh5 8. Qa4 Nge7 9. Ne4 Bg6 10. Nc5 b6 11. Nd3 Qd7 12. g3 Be4 13. Bg2 Nxe5 14. Qxd7+ Nxd7 15. O-O c5 16. Rd1 g6 17. Nxd4 Bxg2 18. Nb5 Bg7 19. Nd6+ Kf8 20. Kxg2 Nc6 21. Be3 Nd4 22. Bxd4 cxd4 23. a4 Ke7 24. Nb5 Rac8 25. b3 g5 26. Rab1 Rhd8 27. Ne1 Nc5 28. Nf3 Ne6 29. h4 h6 30. hxg5 hxg5 31. Ne1 Rd7 32. Nd3 Kf6 33. Na3 Bf8 34. Nc2 Nc5 35. Nxc5 bxc5 36. Rd3 Ke5 37. e3 Ke4 38. Rbd1 Rcd8 39. f3+ Ke5 40. exd4+ cxd4 41. Re1+ Kf5 42. Re4 Bc5 43. Kf1 f6 44. Kg2 Kg6 45. Re6 Kf7 46. Rc6 Re7 47. Rxc5 Re2+ 48. Kh3 Rxc2 49. Rd5 Rh8+ 50. Kg4 Kg6 51. f4 gxf4 52. Kxf4 Re2 53. R5xd4 Rhe8 54. Kf3 f5 55. g4 fxg4+ 56. Rxg4+ Kf5 57. Rd5+ Kf6 58. Rf4+ Kg6 59. Rd3 Re1 60. Kg2 Kg5 61. Rf2 Rb1 62. Rg3+ Kh4 63. Rf4+ Kh5 64. Rf2 Ree1 65. Rc3 Kg4 66. Rg3+ Kh4 67. Rh3+ Kg4 68. Rg3+ Kh4 69. Rf4+ Kh5 70. Rf5+ 1/2-1/2

[Event "11th Arad Open 2018"]
[Site "Arad"]
[Date "2018.08.08"]
[Round "5"]
[White "Dumitru, Matei-Ioan"]
[Black "Abramciuc, Marius"]
[Result "1/2-1/2"]
[ECO "C54"]
[WhiteElo "2150"]
[BlackElo "2357"]
[Annotator "NA"]
[PlyCount "130"]
[EventDate "2018.08.05"]
[EventType "swiss"]
[EventCountry "ROU"]
[SourceTitle "playchess.com"]
[Source "ChessBase"]
[SourceQuality "1"]
[TimeControl "40/5400+30:1800+30"]

1. e4 {[%emt 0:00:00]} e5 {[%emt 0:00:00]} 2. Nf3 {[%emt 0:00:00]} Nc6 {[%emt 0:00:00]} 3. Bc4 {[%emt 0:00:00]} Bc5 {[%emt 0:00:00]} 4. c3 {[%emt 0:00:00]} Nf6 {[%emt 0:00:00]} 5. d3 {[%emt 0:00:00]} d6 {[%emt 0:00:10]} 6. Nbd2 {[%emt 0:00:35]} a6 {[%emt 0:00:51]} 7. Bb3 {[%emt 0:00:07]} Ba7 {[%emt 0:00:34]} 8. O-O {[%emt 0:00:16]} h6 {[%emt 0:00:28]} 9. Re1 {[%emt 0:00:08]} Be6 {[%emt 0:05:44]} 10. Nf1 {[%emt 0:01:06]} O-O {[%emt 0:00:25]} 11. h3 {[%emt 0:00:20]} Re8 {[%emt 0:03:24]} 12. Be3 {[%emt 0:00:14]} Bxe3 {[%emt 0:02:35]} 13. Nxe3 {[%emt 0:00:06]} d5 {[%emt 0:01:22]} 14. exd5 {[%emt 0:02:36]} Nxd5 {[%emt 0:00:07]} 15. Nc4 {[%emt 0:03:51]} Nf4 {[%emt 0:58:05]} 16. Ncxe5 {[%emt 0:09:56]} Nxe5 {[%emt 0:00:27]} 17. Rxe5 {[%emt 0:04:05]} Nxd3 {[%emt 0:00:35]} 18. Re3 {[%emt 0:03:47]} Nf4 {[%emt 0:09:29]} 19. Bxe6 {[%emt 0:00:41]} Rxe6 {[%emt 0:00:59]} 20. Rxe6 {[%emt 0:00:49]} Nxe6 {[%emt 0:00:06]} 21. Qb3 {[%emt 0:02:06]} b6 {[%emt 0:00:24]} 22. Rd1 {[%emt 0:00:59]} Qf6 {[%emt 0:00:34]} 23. Qc4 {[%emt 0:00:54]} a5 {[%emt 0:00:59]} 24. Qc6 {[%emt 0:04:19]} Rd8 {[%emt 0:01:05]} 25. Rxd8+ {[%emt 0:05:20]} Qxd8 {[%emt 0:00:03]} 26. g3 {[%emt 0:00:51]} Qf6 {[%emt 0:01:28]} 27. Qa8+ {[%emt 0:00:37]} Kh7 {[%emt 0:00:27]} 28. Qe4+ {[%emt 0:00:11]} g6 {[%emt 0:00:53]} 29. Kg2 {[%emt 0:00:26]} Nc5 {[%emt 0:02:00]} 30. Qc4 {[%emt 0:04:18]} Qf5 {[%emt 0:01:48]} 31. b4 {[%emt 0:01:25]} Ne6 {[%emt 0:00:55]} 32. h4 {[%emt 0:01:58]} g5 {[%emt 0:03:42]} 33. hxg5 {[%emt 0:02:41]} hxg5 {[%emt 0:00:01]} 34. Nd2 {[%emt 0:01:26]} Kg7 {[%emt 0:01:53]} 35. Qe4 {[%emt 0:00:23]} Qf6 {[%emt 0:01:31]} 36. bxa5 {[%emt 0:03:32]} bxa5 {[%emt 0:00:03]} 37. c4 {[%emt 0:06:27]} Qb2 {[%emt 0:01:59]} 38. Nf3 {[%emt 0:00:39]} Qxa2 {[%emt 0:00:24]} 39. Qe5+ {[%emt 0:09:13]} Kf8 {[%emt 0:01:03]} 40. Nxg5 {[%emt 0:00:00]} Qxc4 {[%emt 0:00:00]} 41. Nxe6+ {[%emt 0:17:47]} fxe6 {[%emt 0:16:10]} 42. Qxa5 {[%emt 0:00:07]} c5 {[%emt 0:01:02]} 43. Qd2 {[%emt 0:07:47]} Ke7 {[%emt 0:01:01]} 44. Kf3 {[%emt 0:00:22]} Qb3+ {[%emt 0:07:28]} 45. Ke4 {[%emt 0:00:14]} c4 {[%emt 0:01:22]} 46. Kd4 {[%emt 0:00:44]} e5+ {[%emt 0:00:12]} 47. Kxe5 {[%emt 0:01:46]} c3 {[%emt 0:00:02]} 48. Qd6+ {[%emt 0:01:46]} Ke8 {[%emt 0:00:12]} 49. Qg6+ {[%emt 0:04:48]} Kd7 {[%emt 0:03:28]} 50. Qd3+ {[%emt 0:13:34]} Kc8 {[%emt 0:00:14]} 51. Kd4 {[%emt 0:12:08]} Qb4+ {[%emt 0:00:08]} 52. Kd5 {[%emt 0:00:16]} Qb2 {[%emt 0:00:59]} 53. Qc4+ {[%emt 0:02:27]} Kb7 {[%emt 0:00:41]} 54. Qc6+ {[%emt 0:02:04]} Kb8 {[%emt 0:01:12]} 55. Qe8+ {[%emt 0:00:12]} Ka7 {[%emt 0:00:51]} 56. Qa4+ {[%emt 0:00:17]} Kb6 {[%emt 0:00:50]} 57. Qc6+ {[%emt 0:00:17]} Ka7 {[%emt 0:01:16]} 58. Qa4+ {[%emt 0:00:06]} Kb8 {[%emt 0:01:20]} 59. Qe8+ {[%emt 0:00:05]} Kc7 {[%emt 0:02:06]} 60. Qc6+ {[%emt 0:00:04]} Kd8 {[%emt 0:01:24]} 61. Qd6+ {[%emt 0:00:15]} Kc8 {[%emt 0:00:24]} 62. Qc6+ {[%emt 0:00:03]} Kb8 {[%emt 0:00:37]} 63. Qe8+ {[%emt 0:00:04]} Ka7 {[%emt 0:01:01]} 64. Qa4+ {[%emt 0:00:05]} Kb6 {[%emt 0:00:32]} 65. Qc6+ {[%emt 0:00:04]} Ka7 1/2-1/2

[Event "11th Arad Open 2018"]
[Site "Arad"]
[Date "2018.08.08"]
[Round "5"]
[White "Mozes, Ervin"]
[Black "Balla, Tamas-Kristof"]
[Result "1/2-1/2"]
[ECO "B22"]
[WhiteElo "2143"]
[BlackElo "2352"]
[Annotator "NA"]
[PlyCount "41"]
[EventDate "2018.08.05"]
[EventType "swiss"]
[EventCountry "ROU"]
[SourceTitle "playchess.com"]
[Source "ChessBase"]
[SourceQuality "1"]
[TimeControl "40/5400+30:1800+30"]

1. e4 {[%emt 0:00:00]} c5 {[%emt 0:09:08]} 2. c3 {[%emt 0:00:00]} d6 {[%emt 0:02:21]} 3. g3 {[%emt 0:00:00]} g6 {[%emt 0:00:15]} 4. Bg2 {[%emt 0:00:10]} Bg7 {[%emt 0:00:08]} 5. Ne2 {[%emt 0:00:09]} Qc7 {[%emt 0:03:15]} 6. O-O {[%emt 0:05:21]} b6 {[%emt 0:01:39]} 7. d4 {[%emt 0:00:43]} Bb7 {[%emt 0:00:15]} 8. h3 {[%emt 0:18:24]} Nd7 {[%emt 0:04:57]} 9. Be3 {[%emt 0:03:42]} e6 {[%emt 0:00:09]} 10. Na3 {[%emt 0:01:35]} a6 {[%emt 0:01:10]} 11. Qd2 {[%emt 0:05:31]} Ngf6 {[%emt 0:07:53]} 12. f3 {[%emt 0:04:07]} O-O {[%emt 0:00:28]} 13. g4 {[%emt 0:06:53]} b5 {[%emt 0:03:21]} 14. Ng3 {[%emt 0:04:47]} e5 {[%emt 0:06:17]} 15. Rad1 {[%emt 0:09:07]} cxd4 {[%emt 0:15:39]} 16. cxd4 {[%emt 0:00:04]} exd4 {[%emt 0:00:06]} 17. Bxd4 {[%emt 0:08:35]} d5 {[%emt 0:01:26]} 18. f4 {[%emt 0:04:52]} dxe4 {[%emt 0:05:58]} 19. g5 {[%emt 0:00:26]} Nd5 {[%emt 0:00:17]} 20. Bxg7 {[%emt 0:01:55]} Kxg7 {[%emt 0:01:18]} 21. Qd4+ {[%emt 0:00:37]} 1/2-1/2

[Event "11th Arad Open 2018"]
[Site "Arad"]
[Date "2018.08.08"]
[Round "5"]
[White "Talu, Mircea"]
[Black "Stoleriu, George"]
[Result "1/2-1/2"]
[ECO "E11"]
[WhiteElo "2092"]
[BlackElo "2392"]
[Annotator "NA"]
[PlyCount "160"]
[EventDate "2018.08.05"]
[EventType "swiss"]
[EventCountry "ROU"]
[SourceTitle "playchess.com"]
[Source "ChessBase"]
[SourceQuality "1"]
[TimeControl "40/5400+30:1800+30"]

1. d4 {[%emt 0:00:00]} Nf6 {[%emt 0:00:00]} 2. c4 {[%emt 0:00:00]} e6 {[%emt 0:00:00]} 3. Nf3 {[%emt 0:00:00]} Bb4+ {[%emt 0:00:00]} 4. Nbd2 {[%emt 0:00:06]} b6 {[%emt 0:01:03]} 5. a3 {[%emt 0:00:11]} Bxd2+ {[%emt 0:00:28]} 6. Qxd2 {[%emt 0:00:07]} Bb7 {[%emt 0:00:32]} 7. e3 {[%emt 0:00:08]} a5 {[%emt 0:00:24]} 8. b3 {[%emt 0:00:09]} O-O {[%emt 0:00:15]} 9. Be2 {[%emt 0:00:18]} d6 {[%emt 0:02:50]} 10. O-O {[%emt 0:02:05]} Nbd7 {[%emt 0:03:08]} 11. Bb2 {[%emt 0:02:51]} Ne4 {[%emt 0:06:39]} 12. Qc2 {[%emt 0:00:09]} Ng5 {[%emt 0:00:12]} 13. Nd2 {[%emt 0:22:51]} f5 {[%emt 0:05:44]} 14. f3 {[%emt 0:10:53]} Qe8 {[%emt 0:08:07]} 15. Rae1 {[%emt 0:13:27]} Qg6 {[%emt 0:02:26]} 16. Bd3 {[%emt 0:08:22]} Rae8 {[%emt 0:02:25]} 17. h4 {[%emt 0:09:04]} Nf7 {[%emt 0:00:38]} 18. e4 {[%emt 0:01:13]} f4 {[%emt 0:02:08]} 19. Nb1 {[%emt 0:08:59]} e5 {[%emt 0:05:49]} 20. b4 {[%emt 0:06:04]} axb4 {[%emt 0:03:21]} 21. axb4 {[%emt 0:00:11]} exd4 {[%emt 0:00:35]} 22. e5 {[%emt 0:00:54]} Qh6 {[%emt 0:00:40]} 23. e6 {[%emt 0:00:38]} Rxe6 {[%emt 0:04:14]} 24. Rxe6 {[%emt 0:00:19]} Qxe6 {[%emt 0:00:03]} 25. Bxh7+ {[%emt 0:00:20]} Kh8 {[%emt 0:00:03]} 26. Bxd4 {[%emt 0:00:36]} Nfe5 {[%emt 0:02:34]} 27. Nd2 {[%emt 0:01:40]} c5 {[%emt 0:10:15]} 28. bxc5 {[%emt 0:00:12]} bxc5 {[%emt 0:00:13]} 29. Bb2 {[%emt 0:02:40]} Ba6 {[%emt 0:12:18]} 30. Rd1 {[%emt 0:09:48]} Bxc4 {[%emt 0:01:16]} 31. Be4 {[%emt 0:00:37]} Bb5 {[%emt 0:01:54]} 32. Nb1 {[%emt 0:00:11]} Nb6 {[%emt 0:00:43]} 33. Nc3 {[%emt 0:00:39]} Bc4 {[%emt 0:00:08]} 34. Qd2 {[%emt 0:00:37]} Nc8 {[%emt 0:17:04]} 35. Nd5 {[%emt 0:00:18]} Qf7 {[%emt 0:02:23]} 36. Bxe5 {[%emt 0:00:15]} dxe5 {[%emt 0:00:06]} 37. Qc3 {[%emt 0:00:06]} Nd6 {[%emt 0:01:39]} 38. Qxe5 {[%emt 0:00:12]} Nxe4 {[%emt 0:00:18]} 39. Qxe4 {[%emt 0:01:21]} Bb3 {[%emt 0:00:46]} 40. Rd3 {[%emt 0:00:00]} Bc2 {[%emt 0:00:00]} 41. Nxf4 {[%emt 0:17:30]} Bxd3 {[%emt 0:23:43]} 42. Nxd3 {[%emt 0:00:05]} Qf5 {[%emt 0:04:39]} 43. Qxf5 {[%emt 0:11:15]} Rxf5 {[%emt 0:00:10]} 44. Kf2 {[%emt 0:00:11]} c4 {[%emt 0:00:54]} 45. g4 {[%emt 0:00:08]} Rd5 {[%emt 0:02:09]} 46. Ne1 {[%emt 0:03:26]} c3 {[%emt 0:02:55]} 47. Ke2 {[%emt 0:00:06]} Kh7 {[%emt 0:02:24]} 48. h5 {[%emt 0:00:39]} Kg8 {[%emt 0:01:02]} 49. f4 {[%emt 0:00:28]} Rd2+ {[%emt 0:02:08]} 50. Ke3 {[%emt 0:00:21]} Rh2 {[%emt 0:00:24]} 51. Kd3 {[%emt 0:00:36]} Rf2 {[%emt 0:00:14]} 52. f5 {[%emt 0:01:59]} Rf4 {[%emt 0:00:28]} 53. Kxc3 {[%emt 0:00:34]} Rxg4 {[%emt 0:00:03]} 54. Nc2 {[%emt 0:00:14]} Rg5 {[%emt 0:00:35]} 55. Ne3 {[%emt 0:00:17]} Rxh5 {[%emt 0:00:09]} 56. Kd4 {[%emt 0:00:06]} Kf7 {[%emt 0:01:16]} 57. Ke4 {[%emt 0:01:08]} Ke7 {[%emt 0:01:13]} 58. Ke5 {[%emt 0:00:36]} Rh1 {[%emt 0:00:40]} 59. Nd5+ {[%emt 0:00:31]} Kd7 {[%emt 0:00:05]} 60. f6 {[%emt 0:00:32]} Rh5+ {[%emt 0:00:51]} 61. Ke4 {[%emt 0:00:15]} g6 {[%emt 0:00:30]} 62. f7 {[%emt 0:00:42]} Rf5 {[%emt 0:00:35]} 63. Nf4 {[%emt 0:00:12]} Rxf7 {[%emt 0:00:03]} 64. Nxg6 {[%emt 0:00:09]} Ke6 {[%emt 0:00:01]} 65. Nf4+ {[%emt 0:00:21]} Kd6 {[%emt 0:00:02]} 66. Nd3 {[%emt 0:00:30]} Re7+ {[%emt 0:00:14]} 67. Kd4 {[%emt 0:00:21]} Rh7 {[%emt 0:00:13]} 68. Ke4 {[%emt 0:00:24]} Rh5 {[%emt 0:00:14]} 69. Nf4 {[%emt 0:00:31]} Ra5 {[%emt 0:00:29]} 70. Ng6 {[%emt 0:01:08]} Ra4+ {[%emt 0:00:15]} 71. Kf5 {[%emt 0:00:11]} Kd5 {[%emt 0:00:32]} 72. Nf4+ {[%emt 0:00:18]} Kd4 {[%emt 0:00:06]} 73. Ne6+ {[%emt 0:00:18]} Ke3 {[%emt 0:00:14]} 74. Ke5 {[%emt 0:00:17]} Ra5+ {[%emt 0:00:12]} 75. Kd6 {[%emt 0:00:16]} Ke4 {[%emt 0:00:06]} 76. Nc5+ {[%emt 0:00:05]} Kf5 {[%emt 0:00:10]} 77. Kd5 {[%emt 0:00:17]} Ra1 {[%emt 0:00:10]} 78. Kd4 {[%emt 0:00:35]} Rd1+ {[%emt 0:00:05]} 79. Nd3 {[%emt 0:00:05]} Rxd3+ {[%emt 0:00:01]} 80. Kxd3 {[%emt 0:00:07]} Ke5 {Ke4+} 1/2-1/2

[Event "11th Arad Open 2018"]
[Site "Arad"]
[Date "2018.08.08"]
[Round "5"]
[White "Joo, Janos"]
[Black "Tiba, Vladyslav"]
[Result "0-1"]
[ECO "B43"]
[WhiteElo "2088"]
[BlackElo "2356"]
[Annotator "NA"]
[PlyCount "108"]
[EventDate "2018.08.05"]
[EventType "swiss"]
[EventCountry "ROU"]
[SourceTitle "playchess.com"]
[Source "ChessBase"]
[SourceQuality "1"]
[TimeControl "40/5400+30:1800+30"]

1. e4 {[%emt 0:03:43]} c5 {[%emt 0:00:00]} 2. Nf3 {[%emt 0:00:48]} e6 {[%emt 0:00:00]} 3. d4 {[%emt 0:00:31]} cxd4 {[%emt 0:00:00]} 4. Nxd4 {[%emt 0:00:02]} a6 {[%emt 0:00:12]} 5. Nc3 {[%emt 0:00:10]} Qc7 {[%emt 0:00:12]} 6. Bd3 {[%emt 0:00:33]} Nf6 {[%emt 0:01:02]} 7. O-O {[%emt 0:00:33]} d6 {[%emt 0:01:41]} 8. Kh1 {[%emt 0:02:14]} Be7 {[%emt 0:00:51]} 9. Be3 {[%emt 0:04:40]} b5 {[%emt 0:07:42]} 10. a3 {[%emt 0:00:35]} Nbd7 {[%emt 0:02:20]} 11. f4 {[%emt 0:06:44]} Bb7 {[%emt 0:01:59]} 12. Qf3 {[%emt 0:02:45]} O-O {[%emt 0:07:42]} 13. Rae1 {[%emt 0:00:22]} Nc5 {[%emt 0:02:42]} 14. Bg1 {[%emt 0:04:44]} Nfd7 {[%emt 0:11:52]} 15. Qh3 {[%emt 0:01:58]} Bf6 {[%emt 0:07:17]} 16. Rf3 {[%emt 0:07:57]} Rfe8 {[%emt 0:03:14]} 17. Ref1 {[%emt 0:05:13]} g6 {[%emt 0:08:09]} 18. f5 {[%emt 0:03:34]} Qd8 {[%emt 0:14:29]} 19. fxe6 {[%emt 0:04:16]} fxe6 {[%emt 0:00:31]} 20. b4 {[%emt 0:08:08]} Nxd3 {[%emt 0:00:22]} 21. cxd3 {[%emt 0:02:24]} Qe7 {[%emt 0:01:09]} 22. Nde2 {[%emt 0:02:04]} Rf8 {[%emt 0:03:42]} 23. d4 {[%emt 0:01:37]} e5 {[%emt 0:04:34]} 24. Nd5 {[%emt 0:04:05]} Bxd5 {[%emt 0:00:26]} 25. exd5 {[%emt 0:00:02]} e4 {[%emt 0:01:31]} 26. Rc3 {[%emt 0:03:06]} Nb6 {[%emt 0:02:53]} 27. Rc6 {[%emt 0:01:55]} Nc4 {[%emt 0:04:45]} 28. a4 {[%emt 0:02:11]} Nd2 {[%emt 0:05:33]} 29. Rfc1 {[%emt 0:00:30]} Nc4 {[%emt 0:00:50]} 30. Nc3 {[%emt 0:05:37]} e3 {[%emt 0:03:22]} 31. axb5 {[%emt 0:00:42]} axb5 {[%emt 0:00:06]} 32. Qg4 {[%emt 0:07:34]} Rae8 {[%emt 0:04:04]} 33. Ne2 {[%emt 0:04:57]} Bg5 {[%emt 0:00:28]} 34. h3 {[%emt 0:04:08]} Rf5 {[%emt 0:00:28]} 35. Ra1 {[%emt 0:01:10]} Ref8 {[%emt 0:00:47]} 36. Rca6 {[%emt 0:00:47]} Qf7 {[%emt 0:00:30]} 37. Ng3 {[%emt 0:02:15]} h5 {[%emt 0:00:26]} 38. Qe2 {[%emt 0:01:24]} Rxd5 {[%emt 0:00:19]} 39. Ra7 {[%emt 0:00:13]} Qe8 {[%emt 0:00:47]} 40. Qd3 {[%emt 0:00:00]} Qe6 {[%emt 0:00:00]} 41. Rb7 {[%emt 0:17:36]} Rf7 {[%emt 0:21:27]} 42. Ra8+ {[%emt 0:00:48]} Kh7 {[%emt 0:02:19]} 43. Rbb8 {[%emt 0:00:43]} Bf6 {[%emt 0:00:33]} 44. Ne4 {[%emt 0:01:46]} Rf5 {[%emt 0:07:24]} 45. Bxe3 {[%emt 0:01:39]} Bg7 {[%emt 0:01:17]} 46. Bg1 {[%emt 0:03:49]} d5 {[%emt 0:00:22]} 47. Ng3 {[%emt 0:01:15]} Rg5 {[%emt 0:00:13]} 48. Re8 {[%emt 0:01:25]} Qd6 {[%emt 0:00:18]} 49. Ne2 {[%emt 0:00:38]} Qxb4 {[%emt 0:00:38]} 50. Ra6 {[%emt 0:03:56]} Nd6 {[%emt 0:00:54]} 51. Re6 {[%emt 0:00:35]} Ne4 {[%emt 0:00:10]} 52. Be3 {[%emt 0:00:41]} Qe1+ {[%emt 0:00:17]} 53. Kh2 {[%emt 0:00:21]} Nf2 {[%emt 0:00:48]} 54. Bxf2 {[%emt 0:00:47]} Qxf2 0-1

[Event "11th Arad Open 2018"]
[Site "Arad"]
[Date "2018.08.08"]
[Round "5"]
[White "Bai, Adelard"]
[Black "Trifan, Andrei Ioan"]
[Result "1/2-1/2"]
[ECO "A50"]
[WhiteElo "2071"]
[BlackElo "2308"]
[Annotator "NA"]
[PlyCount "65"]
[EventDate "2018.08.05"]
[EventType "swiss"]
[EventCountry "ROU"]
[SourceTitle "playchess.com"]
[Source "ChessBase"]
[SourceQuality "1"]
[TimeControl "40/5400+30:1800+30"]

1. d4 {[%emt 0:00:00]} Nf6 {[%emt 0:00:34]} 2. c4 {[%emt 0:00:03]} g6 {[%emt 0:01:00]} 3. f3 {[%emt 0:00:44]} c5 {[%emt 0:07:10]} 4. d5 {[%emt 0:00:18]} d6 {[%emt 0:01:20]} 5. Nc3 {[%emt 0:01:31]} Bg7 {[%emt 0:02:23]} 6. e4 {[%emt 0:04:48]} O-O {[%emt 0:03:49]} 7. Be3 {[%emt 0:00:27]} Na6 {[%emt 0:03:52]} 8. Qd2 {[%emt 0:02:51]} Nc7 {[%emt 0:14:07]} 9. Nge2 {[%emt 0:04:32]} Rb8 {[%emt 0:07:11]} 10. Ng3 {[%emt 0:01:38]} b5 {[%emt 0:06:43]} 11. cxb5 {[%emt 0:05:22]} a6 {[%emt 0:00:58]} 12. bxa6 {[%emt 0:01:15]} Bxa6 {[%emt 0:01:53]} 13. Bxa6 {[%emt 0:00:35]} Nxa6 {[%emt 0:02:08]} 14. O-O {[%emt 0:04:09]} Nd7 {[%emt 0:03:35]} 15. Rac1 {[%emt 0:09:18]} Qa5 {[%emt 0:08:57]} 16. Kh1 {[%emt 0:04:26]} Ne5 {[%emt 0:03:31]} 17. b3 {[%emt 0:01:04]} Rfc8 {[%emt 0:05:05]} 18. Bh6 {[%emt 0:03:09]} c4 {[%emt 0:05:12]} 19. Bxg7 {[%emt 0:04:08]} Kxg7 {[%emt 0:00:02]} 20. bxc4 {[%emt 0:04:32]} Rxc4 {[%emt 0:00:32]} 21. f4 {[%emt 0:04:09]} Nd7 {[%emt 0:01:22]} 22. Nb1 {[%emt 0:05:42]} Qxd2 {[%emt 0:01:53]} 23. Nxd2 {[%emt 0:02:15]} Rxc1 {[%emt 0:00:33]} 24. Rxc1 {[%emt 0:00:10]} Rb2 {[%emt 0:00:25]} 25. Nc4 {[%emt 0:00:32]} Rxa2 {[%emt 0:00:33]} 26. e5 {[%emt 0:03:54]} dxe5 {[%emt 0:04:06]} 27. fxe5 {[%emt 0:00:36]} Nb4 {[%emt 0:00:52]} 28. d6 {[%emt 0:05:28]} exd6 {[%emt 0:04:29]} 29. exd6 {[%emt 0:00:45]} Nd3 {[%emt 0:01:30]} 30. Rf1 {[%emt 0:01:24]} f5 {[%emt 0:02:28]} 31. h3 {[%emt 0:01:51]} Ra4 {[%emt 0:02:00]} 32. Nd2 {[%emt 0:00:43]} Rd4 {[%emt 0:00:42]} 33. Rxf5 {[%emt 0:01:28]} 1/2-1/2